fUSD/lending_fUSD_20250322
["ID","MTS","AMOUNT","RATE_DAILY","PERIOD"]
[356558971,1742663454019,-500.0,0.00044109,120]
[356558972,1742663454029,-500.0,0.00044109,120]
[356558973,1742663454038,-500.0,0.00044109,120]
[356558974,1742663454047,-1312.28,0.00044109,120]
[356558975,1742663454057,-500.0,0.00044109,120]
[356558976,1742663454066,-500.0,0.00044109,120]
[356558977,1742663454075,-500.0,0.00044109,120]
[356558978,1742663454084,-500.0,0.00044109,120]
[356558979,1742663454094,-500.0,0.00044109,120]
[356558980,1742663454103,-500.0,0.00044109,120]
[356558981,1742663454112,-500.0,0.00044109,120]
[356558982,1742663454122,-500.0,0.00044109,120]
[356558983,1742663454131,-500.0,0.00044109,120]
[356558984,1742663454140,-500.0,0.00044109,120]
[356558985,1742663454150,-500.0,0.00044109,120]
[356558986,1742663454159,-500.0,0.00044109,120]
[356558987,1742663454169,-500.0,0.00044109,120]
[356558988,1742663454178,-520.99296379,0.00044109,120]
[356558989,1742663454188,-500.0,0.00044109,120]
[356558990,1742663454197,-500.0,0.00044109,120]
[356558991,1742663454206,-500.0,0.00044109,120]
[356558992,1742663454215,-500.0,0.00044109,120]
[356558993,1742663454224,-500.0,0.00044109,120]
[356558994,1742663454234,-488.44263854,0.00044109,120]
[356558995,1742663454243,-500.0,0.00044109,120]
[356558996,1742663454252,-434.35878314,0.00044109,120]
[356558997,1742663454262,-500.0,0.00044109,120]
[356558998,1742663454375,-500.0,0.00044109,120]
[356558999,1742663454386,-500.0,0.00044109,120]
[356559000,1742663454396,-500.0,0.00044109,120]
[356559001,1742663454405,-500.0,0.00044109,120]
[356559002,1742663454414,-784.83,0.00044109,120]
[356559003,1742663454423,-500.0,0.00044109,120]
[356559004,1742663454432,-500.0,0.00044109,120]
[356559005,1742663454441,-500.0,0.00044109,120]
[356559006,1742663454451,-500.0,0.00044109,120]
[356559007,1742663454460,-500.0,0.00044109,120]
[356559008,1742663454470,-500.0,0.00044109,120]
[356559009,1742663454480,-500.0,0.00044109,120]
[356559010,1742663454489,-500.0,0.00044109,120]
[356559011,1742663454498,-1039.86,0.00044109,120]
[356559012,1742663454509,-500.0,0.00044109,120]
[356559013,1742663454518,-536.98,0.00044109,120]
[356559014,1742663454528,-500.0,0.00044109,120]
[356559015,1742663454537,-500.0,0.00044109,120]
[356559016,1742663454546,-500.0,0.00044109,120]
[356559017,1742663454555,-500.0,0.00044109,120]
[356559018,1742663454564,-500.0,0.00044109,120]
[356559019,1742663454573,-766.24,0.00044109,120]
[356559020,1742663454582,-500.0,0.00044109,120]
[356559021,1742663454591,-500.0,0.00044109,120]
[356559022,1742663454599,-500.0,0.00044109,120]
[356559023,1742663454608,-1657.09,0.00044109,120]
[356559024,1742663454617,-500.0,0.00044109,120]
[356559025,1742663454626,-500.0,0.00044109,120]
[356559026,1742663454635,-575.32,0.00044109,120]
[356559027,1742663454644,-615.06224252,0.00044109,120]
[356559028,1742663454654,-618.36,0.00044109,120]
[356559029,1742663454662,-500.0,0.00044109,120]
[356559030,1742663454671,-594.78246921,0.00044109,120]
[356559031,1742663454680,-500.0,0.00044109,120]
[356559032,1742663454689,-500.0,0.00044109,120]
[356559033,1742663454698,-500.0,0.00044109,120]
[356559034,1742663454707,-504.5,0.00044109,120]
[356559035,1742663454716,-517.96,0.00044109,120]
[356559036,1742663454725,-500.0,0.00044109,120]
[356559037,1742663454734,-500.0,0.00044109,120]
[356559038,1742663454743,-500.0,0.00044109,2]
[356559039,1742663454752,-500.0,0.00044109,120]
[356559040,1742663454761,-500.0,0.00044109,120]
[356559041,1742663454771,-500.0,0.00044109,120]
[356559042,1742663454780,-500.0,0.00044109,120]
[356559043,1742663454789,-500.0,0.00044109,120]
[356559044,1742663454797,-500.0,0.00044109,120]
[356559045,1742663454807,-295.15721852,0.00044109,120]
[356559046,1742663454816,-500.0,0.00044109,120]
[356559047,1742663454825,-395.30924323,0.00044109,120]
[356559048,1742663454835,-500.0,0.00044109,120]
[356559049,1742663454844,-500.0,0.00044109,120]
[356559050,1742663454853,-500.0,0.00044109,120]
[356559051,1742663454862,-500.0,0.00044109,120]
[356559052,1742663454871,-500.0,0.00044109,120]
[356559053,1742663454880,-500.0,0.00044109,120]
[356559054,1742663454889,-500.0,0.00044109,120]
[356559055,1742663454898,-500.0,0.00044109,120]
[356559056,1742663454907,-500.0,0.00044109,120]
[356559057,1742663454916,-500.0,0.00044109,120]
[356559058,1742663454925,-500.0,0.00044109,120]
[356559059,1742663454934,-500.0,0.00044109,120]
[356559060,1742663454944,-688.86,0.00044109,120]
[356559061,1742663454953,-500.0,0.00044109,120]
[356559062,1742663454962,-500.0,0.00044109,120]
[356559063,1742663454971,-500.0,0.00044109,120]
[356559064,1742663454981,-500.0,0.00044109,120]
[356559065,1742663454990,-286.47390539,0.00044109,30]
[356559066,1742663455000,-152.0,0.00044125,4]
[356559067,1742663455011,-3000.0,0.0004415,120]
[356559068,1742663455020,-869.17,0.0004438,120]
[356559069,1742663455030,-2674.83,0.00044382,120]
[356559070,1742663455040,-180.09987829,0.00044383,120]
[356559071,1742663455049,-501.45086767,0.00044383,120]
[356559072,1742663455058,-505.1376099,0.00044383,120]
[356559073,1742663455068,-500.0,0.00044383,120]
[356559074,1742663455078,-500.0,0.00044383,120]
[356559075,1742663455087,-1270.91,0.00044383,120]
[356559076,1742663455096,-500.0,0.00044383,120]
[356559077,1742663455105,-500.0,0.00044383,120]
[356559078,1742663455115,-500.0,0.00044383,120]
[356559079,1742663455124,-500.0,0.00044383,5]
[356559080,1742663455133,-395.51853151,0.00044383,120]
[356559081,1742663455142,-153.125229,0.00044383,14]
[356559082,1742663455151,-506.65775339,0.00044383,120]
[356559083,1742663455161,-500.0,0.00044383,10]
[356559084,1742663455170,-452.20292891,0.00044383,120]
[356559085,1742663455179,-500.0,0.00044383,120]
[356559086,1742663455188,-480.36576499,0.00044383,120]
[356559087,1742663455197,-500.0,0.00044383,120]
[356559088,1742663455206,-500.0,0.00044383,120]
[356559089,1742663455215,-500.0,0.00044383,120]
[356559090,1742663455224,-500.0,0.00044383,120]
[356559091,1742663455233,-500.0,0.00044383,120]
[356559092,1742663455243,-597.79,0.00044383,120]
[356559093,1742663455251,-2000.0,0.00044383,2]
[356559094,1742663455261,-603.73,0.00044383,120]
[356559095,1742663455269,-407.69147,0.00044383,120]
[356559096,1742663455278,-500.0,0.00044383,120]
[356559097,1742663455287,-500.0,0.00044383,120]
[356559098,1742663455298,-500.0,0.00044383,120]
[356559099,1742663455307,-500.0,0.00044383,120]
[356559100,1742663455316,-500.0,0.00044383,120]
[356559101,1742663455325,-500.0,0.00044383,120]
[356559102,1742663455334,-500.0,0.00044383,120]
[356559103,1742663455346,-502.65889,0.00044383,120]
[356559104,1742663455357,-500.0,0.00044383,120]
[356559105,1742663455367,-500.0,0.00044383,120]
[356559106,1742663455379,-500.0,0.00044383,120]
[356559107,1742663455390,-619.04,0.00044383,120]
[356559108,1742663455399,-500.0,0.00044383,120]
[356559109,1742663455408,-500.0,0.00044383,120]
[356559110,1742663455418,-500.0,0.00044383,120]
[356559111,1742663455427,-500.0,0.00044383,120]
[356559112,1742663455436,-500.0,0.00044383,120]
[356559113,1742663455445,-500.0,0.00044383,120]
[356559114,1742663455455,-426.62993853,0.00044383,120]
[356559115,1742663455465,-591.2060706,0.00044383,120]
[356559116,1742663455474,-503.63,0.00044383,120]
[356559117,1742663455482,-500.0,0.00044383,120]
[356559118,1742663455491,-500.0,0.00044383,120]
[356559119,1742663455501,-410.11888099,0.00044383,120]
[356559120,1742663455510,-200.0,0.00044383,7]
[356559121,1742663455519,-500.0,0.00044383,120]
[356559122,1742663455528,-500.0,0.00044383,120]
[356559123,1742663455537,-449.63730348,0.00044383,120]
[356559124,1742663455546,-500.0,0.00044383,120]
[356559125,1742663455555,-500.0,0.00044383,120]
[356559126,1742663455564,-500.0,0.00044383,120]
[356559127,1742663455573,-500.0,0.00044383,120]
[356559128,1742663455583,-500.0,0.00044383,120]
[356559129,1742663455593,-500.0,0.00044383,120]
[356559130,1742663455602,-500.0,0.00044383,120]
[356559131,1742663455611,-500.0,0.00044383,120]
[356559132,1742663455621,-500.0,0.00044383,120]
[356559133,1742663455631,-500.0,0.00044383,120]
[356559134,1742663455641,-500.0,0.00044383,120]
[356559135,1742663455652,-500.0,0.00044383,120]
[356559136,1742663455663,-500.0,0.00044383,120]
[356559137,1742663455671,-500.0,0.00044383,120]
[356559138,1742663455681,-500.0,0.00044383,120]
[356559139,1742663455690,-500.0,0.00044383,120]
[356559140,1742663455699,-500.0,0.00044383,120]
[356559141,1742663455708,-500.0,0.00044383,120]
[356559142,1742663455717,-500.0,0.00044383,120]
[356559143,1742663455726,-500.0,0.00044383,120]
[356559144,1742663455735,-500.0,0.00044383,120]
[356559145,1742663455744,-158.22,0.00044383,120]
[356559146,1742663455753,-202.11677484,0.00044383,120]
[356559147,1742663455762,-500.0,0.00044383,120]
[356559148,1742663455772,-500.0,0.00044383,120]
[356559149,1742663455781,-500.0,0.00044383,120]
[356559150,1742663455790,-500.0,0.00044383,120]
[356559151,1742663455799,-500.0,0.00044383,120]
[356559152,1742663455808,-500.0,0.00044383,120]
[356559153,1742663455818,-500.0,0.00044383,120]
[356559154,1742663455827,-409.05354164,0.00044383,120]
[356559155,1742663455836,-500.0,0.00044383,120]
[356559156,1742663455845,-500.0,0.00044383,120]
[356559157,1742663455854,-500.0,0.00044383,120]
[356559158,1742663455863,-512.94819359,0.00044383,120]
[356559159,1742663455872,-184.37535245,0.00044383,120]
[356559160,1742663455881,-500.0,0.00044383,120]
[356559161,1742663455891,-500.0,0.00044383,120]
[356559162,1742663455900,-208.398807,0.00044383,120]
[356559163,1742663455909,-500.0,0.00044383,120]
[356559164,1742663455918,-585.33180694,0.00044383,120]
[356559165,1742663455927,-500.0,0.00044383,120]
[356559166,1742663455935,-500.0,0.00044383,120]
[356559167,1742663455945,-500.0,0.00044383,120]
[356559168,1742663455955,-500.0,0.00044383,7]
[356559169,1742663455964,-169.006829,0.00044383,120]
[356559170,1742663455973,-543.79,0.00044383,120]
[356559171,1742663455982,-500.0,0.00044383,120]
[356559172,1742663455991,-500.0,0.00044383,120]
[356559173,1742663456000,-500.0,0.00044383,120]
[356559174,1742663456010,-500.0,0.00044383,120]
[356559175,1742663456019,-500.0,0.00044383,120]
[356559176,1742663456029,-500.0,0.00044383,120]
[356559177,1742663456038,-531.1128267,0.00044383,120]
[356559178,1742663456047,-500.0,0.00044383,120]
[356559179,1742663456056,-500.0,0.00044383,120]
[356559180,1742663456066,-500.0,0.00044383,120]
[356559181,1742663456075,-228.71286837,0.00044383,120]
[356559182,1742663456084,-500.0,0.00044383,120]
[356559183,1742663456092,-500.0,0.00044383,120]
[356559184,1742663456102,-500.0,0.00044383,120]
[356559185,1742663456111,-500.0,0.00044383,120]
[356559186,1742663456119,-500.0,0.00044383,120]
[356559187,1742663456128,-500.0,0.00044383,120]
[356559188,1742663456137,-500.0,0.00044383,120]
[356559189,1742663456146,-500.0,0.00044383,120]
[356559190,1742663456155,-569.06352499,0.00044383,120]
[356559191,1742663456165,-500.0,0.00044383,120]
[356559192,1742663456174,-500.0,0.00044383,120]
[356559193,1742663456183,-500.0,0.00044383,120]
[356559194,1742663456191,-500.0,0.00044383,120]
[356559195,1742663456200,-500.0,0.00044383,120]
[356559196,1742663456210,-500.0,0.00044383,120]
[356559197,1742663456219,-500.0,0.00044383,120]
[356559198,1742663456229,-500.0,0.00044383,120]
[356559199,1742663456239,-603.07233039,0.00044383,120]
[356559200,1742663456249,-500.0,0.00044383,120]
[356559201,1742663456259,-500.0,0.00044383,120]
[356559202,1742663456268,-500.0,0.00044383,120]
[356559203,1742663456278,-500.0,0.00044383,120]
[356559204,1742663456287,-500.0,0.00044383,120]
[356559205,1742663456299,-517.64,0.00044383,120]
[356559206,1742663456311,-500.0,0.00044383,120]
[356559207,1742663456320,-500.0,0.00044383,120]
[356559208,1742663456330,-500.0,0.00044383,120]
[356559209,1742663456340,-500.0,0.00044383,60]
[356559210,1742663456350,-500.0,0.00044383,120]
[356559211,1742663456359,-500.0,0.00044383,120]
[356559212,1742663456369,-500.0,0.00044383,120]
[356559213,1742663456378,-668.58,0.00044383,120]
[356559214,1742663456388,-500.13,0.00044383,120]
[356559215,1742663456397,-500.0,0.00044383,120]
[356559216,1742663456406,-500.0,0.00044383,120]
[356559217,1742663456416,-924.8,0.00044383,120]
[356559218,1742663456425,-560.93,0.00044383,120]
[356559219,1742663456434,-500.0,0.00044383,120]
[356559220,1742663456443,-2280.09,0.00044383,120]
[356559221,1742663456452,-500.0,0.00044383,120]
[356559222,1742663456464,-194.79735797,0.00044383,120]
[356559223,1742663456474,-500.0,0.00044383,120]
[356559224,1742663456483,-500.0,0.00044383,120]
[356559225,1742663456491,-500.0,0.00044383,120]
[356559226,1742663456500,-500.0,0.00044383,120]
[356559227,1742663456509,-1029.56,0.00044383,2]
[356559228,1742663456519,-500.0,0.00044383,120]
[356559229,1742663456529,-500.0,0.00044383,120]
[356559230,1742663456538,-500.0,0.00044383,120]
[356559231,1742663456547,-500.0,0.00044383,120]
[356559232,1742663456557,-500.0,0.00044383,120]
[356559233,1742663456567,-500.0,0.00044383,120]
[356559234,1742663456681,-500.0,0.00044383,120]
[356559235,1742663456691,-817.98,0.00044383,120]
[356559236,1742663456700,-500.0,0.00044383,120]
[356559237,1742663456709,-578.9,0.00044383,120]
[356559238,1742663456718,-500.0,0.00044383,120]
[356559239,1742663456727,-500.0,0.00044383,120]
[356559240,1742663456737,-500.0,0.00044383,120]
[356559241,1742663456747,-500.0,0.00044383,120]
[356559242,1742663456756,-1229.96,0.00044383,120]
[356559243,1742663456765,-288.20137182,0.00044383,120]
[356559244,1742663456776,-500.0,0.00044383,120]
[356559245,1742663456786,-500.0,0.00044383,120]
[356559246,1742663456795,-500.0,0.00044383,120]
[356559247,1742663456807,-500.0,0.00044383,120]
[356559248,1742663456817,-547.63,0.00044383,120]
[356559249,1742663456827,-1943.9,0.00044383,120]
[356559250,1742663456836,-500.0,0.00044383,120]
[356559251,1742663456846,-500.0,0.00044383,100]
[356559252,1742663456857,-825.45,0.00044383,120]
[356559253,1742663456866,-953.59,0.00044383,120]
[356559254,1742663456875,-500.0,0.00044383,120]
[356559255,1742663456885,-500.0,0.00044383,120]
[356559256,1742663456894,-856.18,0.00044383,120]
[356559257,1742663456903,-500.0,0.00044383,7]
[356559258,1742663456912,-500.0,0.00044383,120]
[356559259,1742663456921,-637.86188811,0.00044383,120]
[356559260,1742663456931,-500.0,0.00044383,120]
[356559261,1742663456941,-500.0,0.00044383,120]
[356559262,1742663456950,-500.0,0.00044383,120]
[356559263,1742663456959,-500.0,0.00044383,120]
[356559264,1742663456969,-1080.15,0.00044383,120]
[356559265,1742663456978,-500.0,0.00044383,120]
[356559266,1742663456987,-795.72,0.00044383,120]
[356559267,1742663456996,-500.0,0.00044383,120]
[356559268,1742663457007,-283.16,0.00044383,120]
[356559269,1742663457017,-500.0,0.00044383,120]
[356559270,1742663457026,-1312.28,0.00044383,120]
[356559271,1742663457035,-500.0,0.00044383,120]
[356559272,1742663457044,-500.0,0.00044383,120]
[356559273,1742663457054,-500.0,0.00044383,120]
[356559274,1742663457063,-500.0,0.00044383,120]
[356559275,1742663457072,-643.81808602,0.00044383,120]
[356559276,1742663457082,-500.0,0.00044383,120]
[356559277,1742663457091,-500.0,0.00044383,120]
[356559278,1742663457101,-500.0,0.00044383,120]
[356559279,1742663457111,-500.0,0.00044383,120]
[356559280,1742663457122,-500.0,0.00044383,120]
[356559281,1742663457133,-500.0,0.00044383,120]
[356559282,1742663457143,-500.0,0.00044383,120]
[356559283,1742663457153,-500.0,0.00044383,120]
[356559284,1742663457162,-500.0,0.00044383,120]
[356559285,1742663457172,-500.0,0.00044383,120]
[356559286,1742663457182,-500.0,0.00044383,120]
[356559287,1742663457192,-500.0,0.00044383,120]
[356559288,1742663457201,-500.0,0.00044383,120]
[356559289,1742663457211,-529.56801469,0.00044383,120]
[356559290,1742663457223,-500.0,0.00044383,120]
[356559291,1742663457234,-500.0,0.00044383,120]
[356559292,1742663457243,-500.0,0.00044383,120]
[356559293,1742663457252,-784.83,0.00044383,120]
[356559294,1742663457261,-500.0,0.00044383,120]
[356559295,1742663457270,-500.0,0.00044383,120]
[356559296,1742663457280,-500.0,0.00044383,120]
[356559297,1742663457289,-500.0,0.00044383,120]
[356559298,1742663457303,-500.0,0.00044383,120]
[356559299,1742663457314,-500.0,0.00044383,120]
[356559300,1742663457323,-500.0,0.00044383,120]
[356559301,1742663457332,-1039.86,0.00044383,120]
[356559302,1742663457342,-500.0,0.00044383,120]
[356559303,1742663457351,-536.98,0.00044383,120]
[356559304,1742663457361,-500.0,0.00044383,120]
[356559305,1742663457371,-500.0,0.00044383,120]
[356559306,1742663457380,-500.0,0.00044383,120]
[356559307,1742663457389,-500.0,0.00044383,120]
[356559308,1742663457399,-500.0,0.00044383,120]
[356559309,1742663457408,-766.24,0.00044383,120]
[356559310,1742663457418,-500.0,0.00044383,120]
[356559311,1742663457427,-500.0,0.00044383,120]
[356559312,1742663457437,-500.0,0.00044383,120]
[356559313,1742663457446,-1657.09,0.00044383,120]
[356559314,1742663457456,-500.0,0.00044383,120]
[356559315,1742663457465,-575.32,0.00044383,120]
[356559316,1742663457475,-500.0,0.00044383,120]
[356559317,1742663457484,-500.0,0.00044383,120]
[356559318,1742663457493,-500.0,0.00044383,120]
[356559319,1742663457502,-500.0,0.00044383,120]
[356559320,1742663457511,-504.5,0.00044383,120]
[356559321,1742663457520,-517.96,0.00044383,120]
[356559322,1742663457530,-500.0,0.00044383,120]
[356559323,1742663457539,-500.0,0.00044383,120]
[356559324,1742663457548,-500.0,0.00044383,2]
[356559325,1742663457557,-500.0,0.00044383,120]
[356559326,1742663457566,-500.0,0.00044383,120]
[356559327,1742663457575,-500.0,0.00044383,120]
[356559328,1742663457584,-500.0,0.00044383,120]
[356559329,1742663457594,-500.0,0.00044383,120]
[356559330,1742663457603,-500.0,0.00044383,120]
[356559331,1742663457612,-500.0,0.00044383,120]
[356559332,1742663457621,-500.0,0.00044383,120]
[356559333,1742663457630,-500.0,0.00044383,120]
[356559334,1742663457639,-500.0,0.00044383,120]
[356559335,1742663457648,-500.0,0.00044383,120]
[356559336,1742663457657,-218.22934599,0.00044383,120]
[356559337,1742663457666,-500.0,0.00044383,120]
[356559338,1742663457676,-571.30942324,0.00044383,120]
[356559339,1742663457685,-500.0,0.00044383,120]
[356559340,1742663457694,-500.0,0.00044383,120]
[356559341,1742663457703,-500.0,0.00044383,120]
[356559342,1742663457712,-688.86,0.00044383,120]
[356559343,1742663457721,-500.0,0.00044383,120]
[356559344,1742663457731,-500.0,0.00044383,120]
[356559345,1742663457740,-500.0,0.00044383,120]
[356559346,1742663457749,-500.0,0.00044383,120]
[356559347,1742663457759,-850.0,0.000444,5]
[356559348,1742663457768,-5087.79608885,0.000444,15]
[356559349,1742663457777,-8554.21579625,0.000444,15]
[356559350,1742663457786,-4434.92223368,0.000444,2]
[356559351,1742663457795,-3000.0,0.00044424,120]
[356559352,1742663457804,-1000.0,0.0004447,3]
[356559353,1742663457814,-1800.0,0.0004447,3]
[356559354,1742663457823,-500.0,0.0004447,3]
[356559355,1742663457832,-501.26727105,0.0004447,3]
[356559356,1742663457841,-1000.0,0.0004447,3]
[356559357,1742663457851,-500.0,0.0004447,3]
[356559358,1742663457860,-8371.5842089,0.0004447,2]
[356559359,1742663457869,-6673.3158862,0.0004447,2]
[356559360,1742663457879,-2896.3177646,0.0004447,2]
[356559361,1742663457890,-523.375,0.0004449,120]
[356559362,1742663457899,-3000.0,0.00044499,120]
[356559363,1742663457908,-2674.83,0.00044499,120]
[356559364,1742663457917,-2674.83,0.00044499,120]
[356559365,1742663457927,-2674.83,0.00044499,120]
[356559366,1742663457936,-2674.83,0.00044499,120]
[356559367,1742663457945,-2674.83,0.00044499,120]
[356559368,1742663457954,-2674.83,0.00044499,120]
[356559369,1742663457963,-2674.83,0.00044499,120]
[356559370,1742663457972,-2674.83,0.00044499,120]
[356559371,1742663457981,-2674.83,0.00044499,120]
[356559372,1742663457991,-2674.83,0.00044499,120]
[356559373,1742663458000,-2675.03283257,0.00044499,120]
[356559374,1742663458010,-323524.04800371,0.000445,120]
[356559375,1742663458182,-2641.01304909,0.000445,120]
[356559376,1742663458272,-1756.1,0.000445,120]
[356559377,1742663458289,-392.0,0.000445,120]
[356559379,1742664335203,-50000.0,0.00012,2]
[356559380,1742664336075,-50000.0,0.00012,2]
[356559381,1742664337075,-50000.0,0.00012,2]
[356559382,1742664338182,-50000.0,0.00012,2]
[356559383,1742664339225,-50000.0,0.00012,2]
[356559384,1742664340161,-50000.0,0.00012,2]
[356559385,1742664341278,-50000.0,0.00012,2]
[356559386,1742664342209,-50000.0,0.00012,2]
[356559387,1742664343076,-50000.0,0.00012,2]
[356559388,1742664344024,-50000.0,0.00012,2]
[356559389,1742664345179,-50000.0,0.00012,2]
[356559390,1742664346222,-50000.0,0.00012,2]
[356559391,1742664352227,-58000.0,0.00012,2]
[356559393,1742664405417,-385.17,0.00011999,2]
[356559394,1742664405440,-103105.83,0.00012,2]
[356559395,1742664420400,-207.0,0.00012,2]
[356559397,1742664437632,-666.0,0.00011999,2]
[356559398,1742664437658,-120150.0,0.00012,2]
[356559399,1742664443965,-100000.0,0.00012,2]
[356559400,1742664445354,1200.0,0.000113,4]
[356559401,1742664447504,2400.0,0.000114,4]
[356559402,1742664449627,3600.0,0.000115,4]
[356559403,1742664451728,4800.0,0.000116,4]
[356559404,1742664453835,6000.0,0.000117,4]
[356559405,1742664455929,1200.0,0.000118,4]
[356559406,1742664458033,1200.0,0.000119,4]
[356559407,1742664477201,3273.77955501,0.0001,2]
[356559408,1742664477228,3273.77955501,0.0001,2]
[356559409,1742664477255,3273.77955501,0.0001,2]
[356559410,1742664477283,3273.77955501,0.0001,2]
[356559411,1742664477310,3273.77955501,0.0001,2]
[356559412,1742664477338,3273.77955501,0.0001,2]
[356559413,1742664477367,3273.77955501,0.0001,2]
[356559414,1742664477394,3273.77955501,0.0001,2]
[356559415,1742664477419,3273.77955501,0.0001,2]
[356559416,1742664477444,3273.77955501,0.0001,2]
[356559417,1742664477478,667281.82852922,0.0001,2]
[356559419,1742664517905,-6676.50863493,0.0001199,2]
[356559420,1742664517927,-93323.49136507,0.00012,2]
[356559421,1742664518446,-100000.0,0.00012,2]
[356559422,1742664525655,-51929.0,0.00012,2]
[356559435,1742664573921,-12506.0,0.00012,2]
[356559456,1742664631557,-1.64820971,0.00011999,2]
[356559457,1742664631570,-148.35179029,0.00011999,2]
[356559458,1742664631579,-338.55303918,0.00012,2]
[356559459,1742664631589,-1903.8229914,0.00012,2]
[356559460,1742664631637,-1332.52,0.00012,2]
[356559465,1742664637428,-1139.82487549,0.00012,2]
[356559525,1742664639575,-285.81595013,0.00012,2]
[356559526,1742664639605,-1215.72589904,0.00012,2]
[356559527,1742664639662,-17539.78090265,0.00012,2]
[356559528,1742664639674,-1388.83144935,0.00012,2]
[356559529,1742664639686,-6387.23637631,0.00012,2]
[356559530,1742664639722,-297.82867182,0.00012,2]
[356559531,1742664639734,-3071.32839809,0.00012,2]
[356559532,1742664639834,-1294.80855547,0.00012,2]
[356559556,1742664642594,-3197.54513101,0.00012,2]
[356559561,1742664644240,-508.40095901,0.00012,2]
[356559562,1742664644251,-838.48,0.00012,2]
[356559563,1742664644374,-30251.82829484,0.00012,2]
[356559573,1742664645439,-2617.1246292,0.00012,2]
[356559574,1742664645603,-1740.16,0.00012,2]
[356559579,1742665185470,-250.0,0.00011,2]
[356559580,1742665185497,-1133.725,0.0001176,2]
[356559581,1742665185521,-531.95291652,0.0001181,2]
[356559582,1742665185549,-5403.07792233,0.0001188,2]
[356559583,1742665185572,-150.0,0.0001191,2]
[356559584,1742665185596,-164.65203455,0.00011967,2]
[356559585,1742665185618,-164.58670162,0.00011973,2]
[356559586,1742665185652,-263.52889134,0.00011999,2]
[356559587,1742665185680,-150.0,0.00011999,2]
[356559588,1742665185704,-774723.43936061,0.00012,2]
[356559589,1742665522070,-233.88058754,0.00011934,2]
[356559590,1742665522096,-4170.27761076,0.00011934,2]
[356559591,1742665522123,-150.0,0.00011999,2]
[356559592,1742665522142,-233.88058754,0.00012,2]
[356559593,1742665522154,-4170.27761076,0.00012,2]
[356559594,1742665522165,-150.0,0.00012,2]
[356559595,1742665522180,-1554480.6836034,0.00012,2]
[356559621,1742665831566,-150.0,0.00011899,2]
[356559622,1742665831576,-3678.5863,0.000119,2]
[356559623,1742665831585,-1042.9425,0.000119,2]
[356559624,1742665831595,-4215.3245,0.000119,2]
[356559625,1742665831604,-6335.6465,0.000119,2]
[356559626,1742665831613,-325.50907506,0.00011934,2]
[356559627,1742665831623,-155.92039168,0.00011934,2]
[356559628,1742665831632,-4575.82485624,0.00011999,2]
[356559629,1742665831641,-4927.1515224,0.00012,2]
[356559630,1742665831675,-212371.27183114,0.00012,2]
[356559631,1742665831686,-22110.73246921,0.00012,2]
[356559641,1742665837688,-1989.72490357,0.00012,2]
[356559644,1742665839641,-374.92276963,0.00012,2]
[356559645,1742665839696,-10598.1504,0.00012,2]